[Event "Titled Tuesday Blitz August 16 Late 2022"]
[White "Gascon Del Nogal, Jose Rafael"]
[Black "McBryde, Lamel"]
[WhiteFideId "3902463"]
[BlackFideId "2058596"]
[WhiteElo "2473"]
[BlackElo "2136"]
[Result "1-0"]
[Round "02"]
[TimeControl "180+1"]
[Date "2022.08.18"]
[WhiteClock "0:00:00"]
[BlackClock "0:00:00"]

1. e4 {[%clk 0:00:00]}  Nf6 {[%clk 0:00:00]} 2. e5 {[%clk 0:00:00]}  Nd5 {[%clk 0:00:00]} 3. d4 {[%clk 0:00:00]}  Nb6 {[%clk 0:00:00]} 4. Nf3 {[%clk 0:00:00]}  d5 {[%clk 0:00:00]} 5. Nh4 {[%clk 0:00:00]}  Be6 {[%clk 0:00:00]} 6. f4 {[%clk 0:00:00]}  Qd7 {[%clk 0:00:00]} 7. Be2 {[%clk 0:00:00]}  g6 {[%clk 0:00:00]} 8. O-O {[%clk 0:00:00]}  h5 {[%clk 0:00:00]} 9. Nd2 {[%clk 0:00:00]}  Bg4 {[%clk 0:00:00]} 10. Ndf3 {[%clk 0:00:00]}  e6 {[%clk 0:00:00]} 11. h3 {[%clk 0:00:00]}  Bf5 {[%clk 0:00:00]} 12. Ng5 {[%clk 0:00:00]}  Nc6 {[%clk 0:00:00]} 13. c3 {[%clk 0:00:00]}  Nd8 {[%clk 0:00:00]} 14. a4 {[%clk 0:00:00]}  a5 {[%clk 0:00:00]} 15. b3 {[%clk 0:00:00]}  Be7 {[%clk 0:00:00]} 16. Ba3 {[%clk 0:00:00]}  Bxa3 {[%clk 0:00:00]} 17. Rxa3 {[%clk 0:00:00]}  Qe7 {[%clk 0:00:00]} 18. Ra2 {[%clk 0:00:00]}  Rc8 {[%clk 0:00:00]} 19. Qd2 {[%clk 0:00:00]}  c5 {[%clk 0:00:00]} 20. Bb5+ {[%clk 0:00:00]}  Kf8 {[%clk 0:00:00]} 21. Nhf3 {[%clk 0:00:00]}  c4 {[%clk 0:00:00]} 22. bxc4 {[%clk 0:00:00]}  Nxc4 {[%clk 0:00:00]} 23. Bxc4 {[%clk 0:00:00]}  Rxc4 {[%clk 0:00:00]} 24. Qe3 {[%clk 0:00:00]}  Qc7 {[%clk 0:00:00]} 25. Rc1 {[%clk 0:00:00]}  Kg7 {[%clk 0:00:00]} 26. Nd2 {[%clk 0:00:00]}  Rc6 {[%clk 0:00:00]} 27. Rb2 {[%clk 0:00:00]}  Rb6 {[%clk 0:00:00]} 28. Rxb6 {[%clk 0:00:00]}  Qxb6 {[%clk 0:00:00]} 29. c4 {[%clk 0:00:00]}  Qb2 {[%clk 0:00:00]} 30. Qc3 {[%clk 0:00:00]}  Qxc3 {[%clk 0:00:00]} 31. Rxc3 {[%clk 0:00:00]}  dxc4 {[%clk 0:00:00]} 32. Nxc4 {[%clk 0:00:00]}  Nc6 {[%clk 0:00:00]} 33. Nd6 {[%clk 0:00:00]}  Nxd4 {[%clk 0:00:00]} 34. Rc7 {[%clk 0:00:00]}  Rf8 {[%clk 0:00:00]} 35. Ndxf7 {[%clk 0:00:00]}  Kg8 {[%clk 0:00:00]} 36. Nh6+ {[%clk 0:00:00]}  Kh8 {[%clk 0:00:00]} 37. Rh7# {[%clk 0:00:00]} 1-0


[Site "https://www.chess.com"]

[Event "Titled Tuesday Blitz August 16 Late 2022"]
[White "Ghaem Maghami, Ehsan"]
[Black "Kruckenhauser, Arthur"]
[WhiteFideId "12500739"]
[BlackFideId "1642812"]
[WhiteElo "2593"]
[BlackElo "2218"]
[Result "0-1"]
[Round "02"]
[TimeControl "180+1"]
[Date "2022.08.16"]
[WhiteClock "0:00:08"]
[BlackClock "0:00:19"]

1. c4 {[%clk 0:02:58]}  e6 {[%clk 0:02:57]} 2. Nf3 {[%clk 0:02:58]}  d5 {[%clk 0:02:53]} 3. d4 {[%clk 0:02:59]}  Nf6 {[%clk 0:02:53]} 4. g3 {[%clk 0:02:58]}  dxc4 {[%clk 0:02:48]} 5. Bg2 {[%clk 0:02:58]}  Nbd7 {[%clk 0:02:48]} 6. O-O {[%clk 0:02:56]}  c6 {[%clk 0:02:47]} 7. a4 {[%clk 0:02:52]}  a5 {[%clk 0:02:47]} 8. Qc2 {[%clk 0:02:50]}  b5 {[%clk 0:02:47]} 9. Nbd2 {[%clk 0:02:35]}  Nd5 {[%clk 0:02:32]} 10. Ne4 {[%clk 0:02:28]}  Be7 {[%clk 0:02:24]} 11. b3 {[%clk 0:02:25]}  cxb3 {[%clk 0:02:18]} 12. Qxb3 {[%clk 0:02:22]}  b4 {[%clk 0:02:13]} 13. Bg5 {[%clk 0:02:20]}  O-O {[%clk 0:02:04]} 14. Bxe7 {[%clk 0:02:15]}  Qxe7 {[%clk 0:02:05]} 15. Rfc1 {[%clk 0:02:12]}  Ba6 {[%clk 0:02:05]} 16. e3 {[%clk 0:01:46]}  Rfc8 {[%clk 0:02:04]} 17. Nc5 {[%clk 0:01:45]}  Nc3 {[%clk 0:01:52]} 18. Rxc3 {[%clk 0:01:26]}  bxc3 {[%clk 0:01:52]} 19. Qxc3 {[%clk 0:01:27]}  Nxc5 {[%clk 0:01:40]} 20. dxc5 {[%clk 0:01:27]}  Qf6 {[%clk 0:01:04]} 21. Nd4 {[%clk 0:01:17]}  e5 {[%clk 0:00:51]} 22. Nb3 {[%clk 0:01:16]}  Rab8 {[%clk 0:00:51]} 23. Nxa5 {[%clk 0:01:13]}  Be2 {[%clk 0:00:47]} 24. Nb3 {[%clk 0:00:58]}  Bf3 {[%clk 0:00:46]} 25. Bxf3 {[%clk 0:00:55]}  Qxf3 {[%clk 0:00:47]} 26. a5 {[%clk 0:00:53]}  Qd5 {[%clk 0:00:46]} 27. Nd2 {[%clk 0:00:50]}  Rb5 {[%clk 0:00:42]} 28. a6 {[%clk 0:00:39]}  Rxc5 {[%clk 0:00:42]} 29. Qb4 {[%clk 0:00:39]}  Rb5 {[%clk 0:00:37]} 30. Qc3 {[%clk 0:00:38]}  Ra8 {[%clk 0:00:26]} 31. e4 {[%clk 0:00:35]}  Qc5 {[%clk 0:00:23]} 32. Qxc5 {[%clk 0:00:32]}  Rxc5 {[%clk 0:00:24]} 33. Ra2 {[%clk 0:00:32]}  Kf8 {[%clk 0:00:22]} 34. Kf1 {[%clk 0:00:32]}  Ke7 {[%clk 0:00:23]} 35. Ke2 {[%clk 0:00:33]}  Rc3 {[%clk 0:00:20]} 36. Ra4 {[%clk 0:00:28]}  f6 {[%clk 0:00:18]} 37. Nc4 {[%clk 0:00:27]}  Rb3 {[%clk 0:00:19]} 38. Ne3 {[%clk 0:00:25]}  Rb6 {[%clk 0:00:18]} 39. Nf5+ {[%clk 0:00:24]}  Kf8 {[%clk 0:00:19]} 40. a7 {[%clk 0:00:24]}  Rb7 {[%clk 0:00:19]} 41. Ra6 {[%clk 0:00:23]}  Rc7 {[%clk 0:00:18]} 42. Rb6 {[%clk 0:00:23]}  Raxa7 {[%clk 0:00:17]} 43. Rb8+ {[%clk 0:00:23]}  Kf7 {[%clk 0:00:18]} 44. Kf3 {[%clk 0:00:22]}  g6 {[%clk 0:00:18]} 45. Nd6+ {[%clk 0:00:22]}  Ke7 {[%clk 0:00:17]} 46. Nc4 {[%clk 0:00:21]}  Rab7 {[%clk 0:00:17]} 47. Rh8 {[%clk 0:00:21]}  Ke6 {[%clk 0:00:17]} 48. h4 {[%clk 0:00:21]}  Rb4 {[%clk 0:00:17]} 49. Ne3 {[%clk 0:00:21]}  Rd4 {[%clk 0:00:15]} 50. g4 {[%clk 0:00:20]}  c5 {[%clk 0:00:15]} 51. Nd5 {[%clk 0:00:13]}  Rxd5 {[%clk 0:00:15]} 52. exd5+ {[%clk 0:00:13]}  Kxd5 {[%clk 0:00:16]} 53. Ke3 {[%clk 0:00:11]}  c4 {[%clk 0:00:16]} 54. Kd2 {[%clk 0:00:12]}  Ke4 {[%clk 0:00:16]} 55. Rf8 {[%clk 0:00:11]}  f5 {[%clk 0:00:17]} 56. gxf5 {[%clk 0:00:10]}  gxf5 {[%clk 0:00:18]} 57. Kc3 {[%clk 0:00:10]}  f4 {[%clk 0:00:18]} 58. Re8 {[%clk 0:00:10]}  Rc5 {[%clk 0:00:18]} 59. Re7 {[%clk 0:00:10]}  Kf3 {[%clk 0:00:18]} 60. Rxh7 {[%clk 0:00:09]}  e4 {[%clk 0:00:18]} 61. Rf7 {[%clk 0:00:08]}  e3 {[%clk 0:00:17]} 62. fxe3 {[%clk 0:00:08]}  Kxe3 {[%clk 0:00:18]} 63. Re7+ {[%clk 0:00:09]}  Kf2 {[%clk 0:00:19]} 64. Re4 {[%clk 0:00:08]}  f3 {[%clk 0:00:18]} 65. Kb4 {[%clk 0:00:06]}  Rc6 {[%clk 0:00:18]} 66. Kb5 {[%clk 0:00:06]}  Rc8 {[%clk 0:00:18]} 67. Rxc4 {[%clk 0:00:06]}  Rxc4 {[%clk 0:00:18]} 68. Kxc4 {[%clk 0:00:07]}  Kg2 {[%clk 0:00:18]} 69. h5 {[%clk 0:00:07]}  f2 {[%clk 0:00:18]} 70. h6 {[%clk 0:00:08]}  f1=Q+ {[%clk 0:00:19]} 0-1


[Site "https://www.chess.com"]

[Event "Titled Tuesday Blitz August 16 Late 2022"]
[White "Gomez Ledo, Roberto Carlos"]
[Black "Mickiewicz, Piotr"]
[WhiteFideId "3507076"]
[BlackFideId "1114891"]
[WhiteElo "2379"]
[BlackElo "2266"]
[Result "1-0"]
[Round "02"]
[TimeControl "180+1"]
[Date "2022.08.18"]
[WhiteClock "0:00:00"]
[BlackClock "0:00:00"]

1. d4 {[%clk 0:00:00]}  d5 {[%clk 0:00:00]} 2. Bf4 {[%clk 0:00:00]}  Nf6 {[%clk 0:00:00]} 3. e3 {[%clk 0:00:00]}  b6 {[%clk 0:00:00]} 4. c4 {[%clk 0:00:00]}  e6 {[%clk 0:00:00]} 5. cxd5 {[%clk 0:00:00]}  exd5 {[%clk 0:00:00]} 6. Nc3 {[%clk 0:00:00]}  Bb7 {[%clk 0:00:00]} 7. Nf3 {[%clk 0:00:00]}  Bd6 {[%clk 0:00:00]} 8. Bg5 {[%clk 0:00:00]}  Nbd7 {[%clk 0:00:00]} 9. Bd3 {[%clk 0:00:00]}  a6 {[%clk 0:00:00]} 10. O-O {[%clk 0:00:00]}  O-O {[%clk 0:00:00]} 11. Rc1 {[%clk 0:00:00]}  c5 {[%clk 0:00:00]} 12. dxc5 {[%clk 0:00:00]}  bxc5 {[%clk 0:00:00]} 13. Bf5 {[%clk 0:00:00]}  Ne5 {[%clk 0:00:00]} 14. Nxe5 {[%clk 0:00:00]}  Bxe5 {[%clk 0:00:00]} 15. Na4 {[%clk 0:00:00]}  c4 {[%clk 0:00:00]} 16. b3 {[%clk 0:00:00]}  h6 {[%clk 0:00:00]} 17. Bh4 {[%clk 0:00:00]}  g6 {[%clk 0:00:00]} 18. Bg4 {[%clk 0:00:00]}  g5 {[%clk 0:00:00]} 19. Bg3 {[%clk 0:00:00]}  Bxg3 {[%clk 0:00:00]} 20. hxg3 {[%clk 0:00:00]}  Bc8 {[%clk 0:00:00]} 21. Bf3 {[%clk 0:00:00]}  g4 {[%clk 0:00:00]} 22. Be2 {[%clk 0:00:00]}  cxb3 {[%clk 0:00:00]} 23. axb3 {[%clk 0:00:00]}  Bf5 {[%clk 0:00:00]} 24. Qd4 {[%clk 0:00:00]}  Rb8 {[%clk 0:00:00]} 25. Nc5 {[%clk 0:00:00]}  Ne4 {[%clk 0:00:00]} 26. b4 {[%clk 0:00:00]}  Qb6 {[%clk 0:00:00]} 27. Nxa6 {[%clk 0:00:00]}  Qxd4 {[%clk 0:00:00]} 28. exd4 {[%clk 0:00:00]}  Rb6 {[%clk 0:00:00]} 29. b5 {[%clk 0:00:00]}  Nd6 {[%clk 0:00:00]} 30. Rc6 {[%clk 0:00:00]}  Rxc6 {[%clk 0:00:00]} 31. bxc6 {[%clk 0:00:00]}  Rc8 {[%clk 0:00:00]} 32. Nb4 {[%clk 0:00:00]}  Kf8 {[%clk 0:00:00]} 33. Rc1 {[%clk 0:00:00]}  Be6 {[%clk 0:00:00]} 34. c7 {[%clk 0:00:00]}  Ne8 {[%clk 0:00:00]} 35. Na6 {[%clk 0:00:00]}  Ke7 {[%clk 0:00:00]} 36. Bb5 {[%clk 0:00:00]}  Bd7 {[%clk 0:00:00]} 37. Re1+ {[%clk 0:00:00]}  Kd6 {[%clk 0:00:00]} 38. Bxd7 {[%clk 0:00:00]}  Kxd7 {[%clk 0:00:00]} 39. Re5 {[%clk 0:00:00]}  Nxc7 {[%clk 0:00:00]} 40. Nxc7 {[%clk 0:00:00]}  Rxc7 {[%clk 0:00:00]} 41. Rxd5+ {[%clk 0:00:00]}  Ke7 {[%clk 0:00:00]} 42. Rh5 {[%clk 0:00:00]}  Rd7 {[%clk 0:00:00]} 43. d5 {[%clk 0:00:00]}  f6 {[%clk 0:00:00]} 44. f3 {[%clk 0:00:00]}  gxf3 {[%clk 0:00:00]} 45. gxf3 {[%clk 0:00:00]}  Kd6 {[%clk 0:00:00]} 46. Rxh6 {[%clk 0:00:00]}  Ke5 {[%clk 0:00:00]} 47. Rh5+ {[%clk 0:00:00]}  Kd4 {[%clk 0:00:00]} 48. Kf2 {[%clk 0:00:00]}  Rb7 {[%clk 0:00:00]} 49. Rf5 {[%clk 0:00:00]}  Rb2+ {[%clk 0:00:00]} 50. Kg1 {[%clk 0:00:00]}  Ke3 {[%clk 0:00:00]} 51. Rxf6 {[%clk 0:00:00]}  Rb1+ {[%clk 0:00:00]} 52. Kg2 {[%clk 0:00:00]}  Rb2+ {[%clk 0:00:00]} 53. Kh3 {[%clk 0:00:00]}  Rb1 {[%clk 0:00:00]} 54. d6 {[%clk 0:00:00]}  Rd1 {[%clk 0:00:00]} 55. Kg4 {[%clk 0:00:00]}  Rd4+ {[%clk 0:00:00]} 56. f4 {[%clk 0:00:00]}  Rd5 {[%clk 0:00:00]} 57. f5 {[%clk 0:00:00]}  Ke4 {[%clk 0:00:00]} 58. Kg5 {[%clk 0:00:00]}  Rd3 {[%clk 0:00:00]} 59. g4 {[%clk 0:00:00]}  Rxd6 {[%clk 0:00:00]} 60. Rxd6 {[%clk 0:00:00]} 1-0


[Site "https://www.chess.com"]

[Event "Titled Tuesday Blitz August 16 Late 2022"]
[White "Hardaway, Brewington"]
[Black "Prydun, Andriy"]
[WhiteFideId "30941849"]
[BlackFideId "14145898"]
[WhiteElo "1813"]
[BlackElo "2163"]
[Result "0-1"]
[Round "02"]
[TimeControl "180+1"]
[Date "2022.08.18"]
[WhiteClock "0:00:00"]
[BlackClock "0:00:00"]

1. e4 {[%clk 0:00:00]}  d5 {[%clk 0:00:00]} 2. exd5 {[%clk 0:00:00]}  Qxd5 {[%clk 0:00:00]} 3. Nc3 {[%clk 0:00:00]}  Qd7 {[%clk 0:00:00]} 4. Nf3 {[%clk 0:00:00]}  g6 {[%clk 0:00:00]} 5. d4 {[%clk 0:00:00]}  Bg7 {[%clk 0:00:00]} 6. Bc4 {[%clk 0:00:00]}  Nc6 {[%clk 0:00:00]} 7. d5 {[%clk 0:00:00]}  Ne5 {[%clk 0:00:00]} 8. Nxe5 {[%clk 0:00:00]}  Bxe5 {[%clk 0:00:00]} 9. Qf3 {[%clk 0:00:00]}  a6 {[%clk 0:00:00]} 10. O-O {[%clk 0:00:00]}  Qg4 {[%clk 0:00:00]} 11. Qd3 {[%clk 0:00:00]}  Bf5 {[%clk 0:00:00]} 12. Qe2 {[%clk 0:00:00]}  Qxe2 {[%clk 0:00:00]} 13. Bxe2 {[%clk 0:00:00]}  Bxc2 {[%clk 0:00:00]} 14. Bf3 {[%clk 0:00:00]}  Bd6 {[%clk 0:00:00]} 15. Be3 {[%clk 0:00:00]}  Nf6 {[%clk 0:00:00]} 16. Rac1 {[%clk 0:00:00]}  Bf5 {[%clk 0:00:00]} 17. Bd4 {[%clk 0:00:00]}  O-O-O {[%clk 0:00:00]} 18. Na4 {[%clk 0:00:00]}  Kb8 {[%clk 0:00:00]} 19. Rfe1 {[%clk 0:00:00]}  Rhe8 {[%clk 0:00:00]} 20. Rcd1 {[%clk 0:00:00]}  Bc2 {[%clk 0:00:00]} 21. Nc3 {[%clk 0:00:00]}  Bxd1 {[%clk 0:00:00]} 22. Rxd1 {[%clk 0:00:00]}  Nd7 {[%clk 0:00:00]} 23. Re1 {[%clk 0:00:00]}  Bc5 {[%clk 0:00:00]} 24. Bg7 {[%clk 0:00:00]}  f6 {[%clk 0:00:00]} 25. Ne4 {[%clk 0:00:00]}  Bd4 {[%clk 0:00:00]} 26. b3 {[%clk 0:00:00]}  Ne5 {[%clk 0:00:00]} 27. Bd1 {[%clk 0:00:00]}  Rxd5 {[%clk 0:00:00]} 28. Kf1 {[%clk 0:00:00]}  Nf7 {[%clk 0:00:00]} 29. Bf3 {[%clk 0:00:00]}  Rf5 {[%clk 0:00:00]} 30. Ng3 {[%clk 0:00:00]}  Re5 {[%clk 0:00:00]} 31. Rd1 {[%clk 0:00:00]}  Bc5 {[%clk 0:00:00]} 32. Ne4 {[%clk 0:00:00]}  Rg8 {[%clk 0:00:00]} 33. Bxf6 {[%clk 0:00:00]}  Rxe4 {[%clk 0:00:00]} 34. Bxe4 {[%clk 0:00:00]}  exf6 {[%clk 0:00:00]} 35. Rd7 {[%clk 0:00:00]}  Ng5 {[%clk 0:00:00]} 36. Bd5 {[%clk 0:00:00]}  Kc8 {[%clk 0:00:00]} 37. Rxc7+ {[%clk 0:00:00]}  Kxc7 {[%clk 0:00:00]} 38. Bxg8 {[%clk 0:00:00]}  h6 {[%clk 0:00:00]} 39. f4 {[%clk 0:00:00]}  Ne4 {[%clk 0:00:00]} 40. Bh7 {[%clk 0:00:00]}  Nc3 {[%clk 0:00:00]} 41. a4 {[%clk 0:00:00]}  g5 {[%clk 0:00:00]} 42. f5 {[%clk 0:00:00]}  Kb6 {[%clk 0:00:00]} 43. Bg8 {[%clk 0:00:00]}  Ka5 {[%clk 0:00:00]} 44. Ke1 {[%clk 0:00:00]}  Kb4 {[%clk 0:00:00]} 45. Kd2 {[%clk 0:00:00]}  b5 {[%clk 0:00:00]} 46. axb5 {[%clk 0:00:00]}  Nxb5 {[%clk 0:00:00]} 47. Kc2 {[%clk 0:00:00]}  Nd4+ {[%clk 0:00:00]} 48. Kd3 {[%clk 0:00:00]}  Nxf5 {[%clk 0:00:00]} 49. Bc4 {[%clk 0:00:00]}  Nd4 {[%clk 0:00:00]} 50. Bxa6 {[%clk 0:00:00]}  Nxb3 {[%clk 0:00:00]} 51. Bc8 {[%clk 0:00:00]}  Nd4 {[%clk 0:00:00]} 52. Ke4 {[%clk 0:00:00]}  Kc3 {[%clk 0:00:00]} 53. Kd5 {[%clk 0:00:00]}  Bb4 {[%clk 0:00:00]} 54. Ke4 {[%clk 0:00:00]}  Bd6 {[%clk 0:00:00]} 55. h3 {[%clk 0:00:00]}  Be5 {[%clk 0:00:00]} 56. Bb7 {[%clk 0:00:00]}  Kd2 {[%clk 0:00:00]} 57. Kd5 {[%clk 0:00:00]}  Ke3 {[%clk 0:00:00]} 58. Kc4 {[%clk 0:00:00]}  Kf4 {[%clk 0:00:00]} 59. Kd3 {[%clk 0:00:00]}  Kg3 {[%clk 0:00:00]} 60. Be4 {[%clk 0:00:00]}  Ne6 {[%clk 0:00:00]} 61. Ke2 {[%clk 0:00:00]}  Nf4+ {[%clk 0:00:00]} 62. Kf1 {[%clk 0:00:00]}  h5 {[%clk 0:00:00]} 63. Kg1 {[%clk 0:00:00]}  Bd4+ {[%clk 0:00:00]} 64. Kf1 {[%clk 0:00:00]}  Kh2 {[%clk 0:00:00]} 65. Ba8 {[%clk 0:00:00]}  g4 {[%clk 0:00:00]} 66. hxg4 {[%clk 0:00:00]}  hxg4 {[%clk 0:00:00]} 67. Be4 {[%clk 0:00:00]}  Kg3 {[%clk 0:00:00]} 68. Ba8 {[%clk 0:00:00]}  Ng6 {[%clk 0:00:00]} 69. Bb7 {[%clk 0:00:00]}  Ne5 {[%clk 0:00:00]} 70. Ba8 {[%clk 0:00:00]}  Nc4 {[%clk 0:00:00]} 71. Ke2 {[%clk 0:00:00]}  Ne3 {[%clk 0:00:00]} 72. Kd3 {[%clk 0:00:00]}  Bb6 {[%clk 0:00:00]} 73. Ke4 {[%clk 0:00:00]}  Nxg2 {[%clk 0:00:00]} 74. Kf5 {[%clk 0:00:00]}  Bd4 {[%clk 0:00:00]} 75. Ke4 {[%clk 0:00:00]}  Be5 {[%clk 0:00:00]} 76. Kf5 {[%clk 0:00:00]}  Nf4 {[%clk 0:00:00]} 77. Be4 {[%clk 0:00:00]}  Kh4 {[%clk 0:00:00]} 78. Bh1 {[%clk 0:00:00]}  g3 {[%clk 0:00:00]} 79. Be4 {[%clk 0:00:00]}  g2 {[%clk 0:00:00]} 80. Bf3 {[%clk 0:00:00]}  g1=Q {[%clk 0:00:00]} 81. Bh1 {[%clk 0:00:00]}  Qg4+ {[%clk 0:00:00]} 82. Ke4 {[%clk 0:00:00]}  Qe2+ {[%clk 0:00:00]} 83. Kf5 {[%clk 0:00:00]}  Qg4+ {[%clk 0:00:00]} 84. Ke4 {[%clk 0:00:00]}  Ng2+ {[%clk 0:00:00]} 85. Kd5 {[%clk 0:00:00]}  Kg3 {[%clk 0:00:00]} 86. Kc6 {[%clk 0:00:00]}  Kh2 {[%clk 0:00:00]} 87. Bxg2 {[%clk 0:00:00]}  Kxg2 {[%clk 0:00:00]} 88. Kb6 {[%clk 0:00:00]}  f5 {[%clk 0:00:00]} 89. Kb7 {[%clk 0:00:00]}  f4 {[%clk 0:00:00]} 90. Ka7 {[%clk 0:00:00]}  f3 {[%clk 0:00:00]} 91. Kb7 {[%clk 0:00:00]}  f2 {[%clk 0:00:00]} 92. Kc6 {[%clk 0:00:00]}  f1=Q {[%clk 0:00:00]} 93. Kd5 {[%clk 0:00:00]}  Qff5 {[%clk 0:00:00]} 94. Kc6 {[%clk 0:00:00]}  Bh2 {[%clk 0:00:00]} 95. Kb6 {[%clk 0:00:00]}  Qge4 {[%clk 0:00:00]} 96. Ka7 {[%clk 0:00:00]}  Qee6 {[%clk 0:00:00]} 97. Kb7 {[%clk 0:00:00]}  Qff7+ {[%clk 0:00:00]} 98. Ka8 {[%clk 0:00:00]}  Qee8# {[%clk 0:00:00]} 0-1


[Site "https://www.chess.com"]

[Event "Titled Tuesday Blitz August 16 Late 2022"]
[White "Harvey, Marcus R"]
[Black "Espinosa Veloz, Ermes"]
[WhiteFideId "400092"]
[BlackFideId "3507424"]
[WhiteElo "2485"]
[BlackElo "2333"]
[Result "1-0"]
[Round "02"]
[TimeControl "180+1"]
[Date "2022.08.16"]
[WhiteClock "0:00:12"]
[BlackClock "0:00:02"]

1. Nf3 {[%clk 0:03:00]}  Nf6 {[%clk 0:02:59]} 2. b3 {[%clk 0:02:52]}  g6 {[%clk 0:02:58]} 3. Bb2 {[%clk 0:02:52]}  Bg7 {[%clk 0:02:59]} 4. g3 {[%clk 0:02:53]}  c5 {[%clk 0:02:57]} 5. Bg2 {[%clk 0:02:53]}  d6 {[%clk 0:02:57]} 6. d4 {[%clk 0:02:52]}  Ne4 {[%clk 0:02:55]} 7. O-O {[%clk 0:02:52]}  O-O {[%clk 0:02:54]} 8. Nbd2 {[%clk 0:02:52]}  Bf5 {[%clk 0:02:32]} 9. Nh4 {[%clk 0:02:51]}  Nxd2 {[%clk 0:02:30]} 10. Qxd2 {[%clk 0:02:37]}  Bc8 {[%clk 0:02:07]} 11. c3 {[%clk 0:02:29]}  Nc6 {[%clk 0:02:02]} 12. d5 {[%clk 0:02:16]}  Ne5 {[%clk 0:02:00]} 13. f4 {[%clk 0:02:16]}  Nd7 {[%clk 0:01:58]} 14. e4 {[%clk 0:02:06]}  b5 {[%clk 0:01:55]} 15. Rae1 {[%clk 0:02:05]}  c4 {[%clk 0:01:49]} 16. e5 {[%clk 0:01:47]}  dxe5 {[%clk 0:01:38]} 17. d6 {[%clk 0:01:32]}  Rb8 {[%clk 0:01:38]} 18. Ba3 {[%clk 0:01:30]}  Bf6 {[%clk 0:01:27]} 19. fxe5 {[%clk 0:01:21]}  Bxh4 {[%clk 0:00:16]} 20. gxh4 {[%clk 0:01:20]}  e6 {[%clk 0:00:17]} 21. Rf4 {[%clk 0:01:03]}  Bb7 {[%clk 0:00:16]} 22. Qf2 {[%clk 0:00:42]}  Bxg2 {[%clk 0:00:14]} 23. Kxg2 {[%clk 0:00:43]}  Qc8 {[%clk 0:00:12]} 24. b4 {[%clk 0:00:37]}  Qc6+ {[%clk 0:00:11]} 25. Kg3 {[%clk 0:00:34]}  Qd5 {[%clk 0:00:11]} 26. Rd4 {[%clk 0:00:32]}  Qc6 {[%clk 0:00:10]} 27. Bc1 {[%clk 0:00:32]}  f6 {[%clk 0:00:09]} 28. exf6 {[%clk 0:00:25]}  Rxf6 {[%clk 0:00:09]} 29. Qg2 {[%clk 0:00:25]}  Qxg2+ {[%clk 0:00:07]} 30. Kxg2 {[%clk 0:00:25]}  e5 {[%clk 0:00:07]} 31. Rd5 {[%clk 0:00:22]}  Rbf8 {[%clk 0:00:04]} 32. Re2 {[%clk 0:00:22]}  a6 {[%clk 0:00:03]} 33. Bg5 {[%clk 0:00:19]}  Rf5 {[%clk 0:00:02]} 34. Be7 {[%clk 0:00:20]}  Re8 {[%clk 0:00:02]} 35. Rdd2 {[%clk 0:00:14]}  Kf7 {[%clk 0:00:03]} 36. Rf2 {[%clk 0:00:14]}  Ke6 {[%clk 0:00:04]} 37. Kg3 {[%clk 0:00:13]}  e4 {[%clk 0:00:02]} 38. Rxf5 {[%clk 0:00:11]}  gxf5 {[%clk 0:00:02]} 39. Kf4 {[%clk 0:00:12]}  Rg8 {[%clk 0:00:03]} 40. Bg5 {[%clk 0:00:12]}  h6 {[%clk 0:00:02]} 41. Bxh6 {[%clk 0:00:12]} 1-0


[Site "https://www.chess.com"]

[Event "Titled Tuesday Blitz August 16 Late 2022"]
[White "Hoffmann, Asa"]
[Black "Danielyan, Vahe"]
[WhiteFideId "2001470"]
[BlackFideId "13304828"]
[WhiteElo "2117"]
[BlackElo "2421"]
[Result "0-1"]
[Round "02"]
[TimeControl "180+1"]
[Date "2022.08.18"]
[WhiteClock "0:00:00"]
[BlackClock "0:00:00"]

1. d4 {[%clk 0:00:00]}  d5 {[%clk 0:00:00]} 2. Bg5 {[%clk 0:00:00]}  Nf6 {[%clk 0:00:00]} 3. Nd2 {[%clk 0:00:00]}  Bf5 {[%clk 0:00:00]} 4. e3 {[%clk 0:00:00]}  Nbd7 {[%clk 0:00:00]} 5. c4 {[%clk 0:00:00]}  e6 {[%clk 0:00:00]} 6. Qb3 {[%clk 0:00:00]}  Be7 {[%clk 0:00:00]} 7. Ngf3 {[%clk 0:00:00]}  O-O {[%clk 0:00:00]} 8. Rc1 {[%clk 0:00:00]}  c5 {[%clk 0:00:00]} 9. cxd5 {[%clk 0:00:00]}  exd5 {[%clk 0:00:00]} 10. dxc5 {[%clk 0:00:00]}  Nxc5 {[%clk 0:00:00]} 11. Qd1 {[%clk 0:00:00]}  Nd3+ {[%clk 0:00:00]} 12. Bxd3 {[%clk 0:00:00]}  Bxd3 {[%clk 0:00:00]} 13. Rc3 {[%clk 0:00:00]}  Ba6 {[%clk 0:00:00]} 14. Nd4 {[%clk 0:00:00]}  Ne4 {[%clk 0:00:00]} 15. Nxe4 {[%clk 0:00:00]}  dxe4 {[%clk 0:00:00]} 16. Bxe7 {[%clk 0:00:00]}  Qxe7 {[%clk 0:00:00]} 17. Qb3 {[%clk 0:00:00]}  Rad8 {[%clk 0:00:00]} 18. g3 {[%clk 0:00:00]}  h5 {[%clk 0:00:00]} 19. h4 {[%clk 0:00:00]}  Qf6 {[%clk 0:00:00]} 20. Qb4 {[%clk 0:00:00]}  Rd6 {[%clk 0:00:00]} 21. Qc5 {[%clk 0:00:00]}  Rfd8 {[%clk 0:00:00]} 22. Qg5 {[%clk 0:00:00]}  Rxd4 {[%clk 0:00:00]} 0-1


[Site "https://www.chess.com"]

[Event "Titled Tuesday Blitz August 16 Late 2022"]
[White "Jeet, Jain"]
[Black "Lenderman, Aleksandr"]
[WhiteFideId "5073022"]
[BlackFideId "2021285"]
[WhiteElo "2055"]
[BlackElo "2607"]
[Result "0-1"]
[Round "02"]
[TimeControl "180+1"]
[Date "2022.08.16"]
[WhiteClock "0:00:28"]
[BlackClock "0:01:05"]

1. Nf3 {[%clk 0:03:00]}  g6 {[%clk 0:02:53]} 2. e3 {[%clk 0:03:00]}  Bg7 {[%clk 0:02:53]} 3. c4 {[%clk 0:03:00]}  c5 {[%clk 0:02:45]} 4. Nc3 {[%clk 0:03:00]}  Nf6 {[%clk 0:02:45]} 5. b3 {[%clk 0:02:59]}  O-O {[%clk 0:02:39]} 6. Bb2 {[%clk 0:03:00]}  b6 {[%clk 0:02:39]} 7. Be2 {[%clk 0:03:00]}  Bb7 {[%clk 0:02:40]} 8. O-O {[%clk 0:03:00]}  e6 {[%clk 0:02:40]} 9. d4 {[%clk 0:02:59]}  Qe7 {[%clk 0:02:38]} 10. Rc1 {[%clk 0:02:54]}  Rd8 {[%clk 0:02:37]} 11. Qc2 {[%clk 0:02:54]}  d6 {[%clk 0:02:37]} 12. Rfd1 {[%clk 0:02:54]}  Nc6 {[%clk 0:02:37]} 13. Qb1 {[%clk 0:02:53]}  Rac8 {[%clk 0:02:36]} 14. a3 {[%clk 0:02:53]}  Ba8 {[%clk 0:02:22]} 15. h3 {[%clk 0:02:49]}  h6 {[%clk 0:02:21]} 16. Qa1 {[%clk 0:02:48]}  Na5 {[%clk 0:02:17]} 17. Qa2 {[%clk 0:02:47]}  cxd4 {[%clk 0:02:17]} 18. Nxd4 {[%clk 0:02:43]}  Nc6 {[%clk 0:02:14]} 19. b4 {[%clk 0:02:22]}  Nxd4 {[%clk 0:02:10]} 20. Rxd4 {[%clk 0:02:13]}  Nd7 {[%clk 0:02:09]} 21. Rd2 {[%clk 0:02:11]}  Qg5 {[%clk 0:02:03]} 22. Bf1 {[%clk 0:02:08]}  Ne5 {[%clk 0:02:03]} 23. Kh2 {[%clk 0:01:26]}  Rxc4 {[%clk 0:01:16]} 24. Ne2 {[%clk 0:00:55]}  Rh4 {[%clk 0:01:06]} 25. f4 {[%clk 0:00:43]}  Rxh3+ {[%clk 0:01:04]} 26. Kxh3 {[%clk 0:00:30]}  Qg4+ {[%clk 0:01:03]} 27. Kh2 {[%clk 0:00:29]}  Qh4+ {[%clk 0:01:04]} 28. Kg1 {[%clk 0:00:28]}  Ng4 {[%clk 0:01:05]} 0-1


[Site "https://www.chess.com"]